bitfinex-derivatives/quotes_BNBF0:USTF0_20260221
["timestamp","ask_amount","ask_price","bid_price","bid_amount"]
[1771714214800,0.98234511,626.65,625.92,3.75958691]
[1771714215001,0.98234511,626.64,625.92,3.75958691]
[1771714215302,0.98234511,626.63,625.92,3.75958691]
[1771714215501,0.98234511,626.62,625.92,3.75958691]
[1771714215701,0.98234511,626.61,625.92,3.75958691]
[1771714215902,0.98234511,626.6,625.92,3.75958691]
[1771714216198,0.98234511,626.59,625.92,3.75958691]
[1771714216401,0.98234511,626.58,625.92,3.75958691]
[1771714216598,1.19130752,626.68,625.92,3.75958691]
[1771714216599,0.98234511,626.57,625.92,3.75958691]
[1771714216902,0.98234511,626.56,625.92,3.75958691]
[1771714217099,0.98234511,626.55,625.92,3.75958691]
[1771714217298,0.98234511,626.54,625.92,3.75958691]
[1771714217500,0.98234511,626.53,625.92,3.75958691]
[1771714217700,0.98234511,626.52,625.92,3.75958691]
[1771714217900,0.98234511,626.51,625.92,3.75958691]
[1771714218101,0.98234511,626.5,625.92,3.75958691]
[1771714218402,0.98234511,626.49,625.92,3.75958691]
[1771714218600,1.19130752,626.68,625.92,3.75958691]
[1771714218601,0.98234511,626.48,625.92,3.75958691]
[1771714218801,0.98234511,626.47,625.92,3.75958691]
[1771714219005,1.19130752,626.68,625.92,3.75958691]
[1771714219305,2.17380624,626.67,625.93,2.39358691]
[1771714219507,0.98249872,626.66,625.93,2.39358691]
[1771714219702,0.98249872,626.65,625.93,2.39358691]
[1771714219905,0.98249872,626.64,625.93,2.39358691]
[1771714220103,0.98249872,626.63,625.93,2.39358691]
[1771714220305,0.98249872,626.62,625.93,2.39358691]
[1771714220604,0.98249872,626.61,625.93,2.39358691]
[1771714220808,0.98249872,626.6,625.93,2.39358691]
[1771714221109,0.98249872,626.59,625.93,2.39358691]
[1771714221305,0.98249872,626.58,625.93,2.39358691]
[1771714221510,0.98249872,626.57,625.93,2.39358691]
[1771714221806,0.98249872,626.56,625.93,2.39358691]
[1771714222006,0.98249872,626.55,625.93,2.39358691]
[1771714222207,0.98249872,626.54,625.93,2.39358691]
[1771714222410,0.98249872,626.53,625.93,2.39358691]
[1771714222612,0.98249872,626.52,625.93,2.39358691]
[1771714222810,0.98249872,626.51,625.93,2.39358691]
[1771714223106,0.98249872,626.5,625.94,1.658]
[1771714223306,0.98249872,626.49,625.94,1.658]
[1771714223607,0.98249872,626.48,625.94,1.658]
[1771714223806,0.98249872,626.47,625.94,1.658]
[1771714224009,1.19130752,626.67,625.94,1.658]
[1771714224211,0.9821597,626.66,625.94,1.658]
[1771714224411,0.9821597,626.65,625.94,1.658]
[1771714224612,0.9821597,626.64,625.94,1.658]
[1771714224812,0.9821597,626.63,625.94,1.658]
[1771714225010,0.9821597,626.62,625.94,1.658]
[1771714225210,0.9821597,626.61,625.94,1.658]
[1771714225412,0.9821597,626.6,625.94,1.658]
[1771714225708,0.9821597,626.59,625.94,1.658]
[1771714225914,0.9821597,626.58,625.94,4.05158691]
[1771714226108,0.9821597,626.57,625.94,4.05158691]
[1771714226411,0.9821597,626.56,625.94,4.05158691]
[1771714226609,0.9821597,626.55,625.94,4.05158691]
[1771714226909,0.9821597,626.54,625.94,4.05158691]
[1771714227114,0.9821597,626.53,625.94,4.05158691]
[1771714227415,0.9821597,626.52,625.94,1.658]
[1771714227611,0.9821597,626.51,625.94,1.658]
[1771714227814,1.19130752,626.64,625.94,1.658]
[1771714228219,1.19130752,626.65,625.94,1.658]
[1771714229621,2.15841412,626.64,625.94,1.658]
[1771714229920,0.9671066,626.63,625.94,1.658]
[1771714230120,0.9671066,626.62,625.94,1.658]
[1771714230317,0.9671066,626.61,625.94,1.658]
[1771714230521,0.9671066,626.6,625.94,1.658]
[1771714230718,0.9671066,626.59,625.94,1.658]
[1771714230923,0.9671066,626.58,625.94,1.658]
[1771714231122,0.9671066,626.57,625.94,1.658]
[1771714231320,0.9671066,626.56,625.94,1.658]
[1771714231524,0.9671066,626.55,625.94,1.658]
[1771714231820,0.9671066,626.54,625.94,1.658]
[1771714232024,0.9671066,626.53,625.94,1.658]
[1771714232323,0.9671066,626.52,625.94,1.658]
[1771714232624,0.9671066,626.51,625.94,1.658]
[1771714232826,0.9671066,626.5,625.94,1.658]
[1771714233124,0.9671066,626.49,625.94,1.658]
[1771714233324,0.9671066,626.48,625.94,1.658]
[1771714233522,0.9671066,626.47,625.94,1.658]
[1771714233726,0.9671066,626.46,625.94,1.658]
[1771714233926,0.9671066,626.45,625.94,1.658]
[1771714234129,1.19130752,626.66,625.94,1.658]
[1771714236529,2.15785386,626.66,625.94,1.658]
[1771714236729,0.96654634,626.65,625.94,1.658]
[1771714236929,0.96654634,626.64,625.94,1.658]
[1771714237149,0.96654634,626.63,625.94,1.658]
[1771714237325,0.96654634,626.62,625.94,1.658]
[1771714237527,0.96654634,626.61,625.94,1.658]
[1771714237728,1.19130752,626.66,625.94,1.658]
[1771714237729,0.96654634,626.6,625.94,1.658]
[1771714237928,0.96654634,626.59,625.94,1.658]
[1771714238127,0.96654634,626.58,625.94,1.658]
[1771714238328,0.96654634,626.57,625.94,1.658]
[1771714238630,0.96654634,626.56,625.94,1.658]
[1771714238830,0.96654634,626.55,625.94,1.658]
[1771714239031,0.96654634,626.54,625.94,1.658]
[1771714239233,0.96654634,626.53,625.94,1.658]
[1771714239429,0.96654634,626.52,625.94,1.658]
[1771714239628,0.96654634,626.51,625.94,1.658]
[1771714239832,1.19130752,626.66,625.94,1.658]
[1771714239833,0.96654634,626.5,625.94,1.658]
[1771714240030,0.96654634,626.49,625.94,1.658]
[1771714240232,0.96654634,626.48,625.94,1.658]
[1771714240430,0.96654634,626.47,625.94,1.658]
[1771714240629,0.96654634,626.46,625.94,1.658]
[1771714240834,1.19130752,626.66,625.94,1.658]
[1771714241232,1.19130752,626.64,625.94,1.658]
[1771714243234,0.96625589,626.63,625.94,1.658]
[1771714243433,0.96625589,626.62,625.94,1.658]
[1771714243634,0.96625589,626.61,625.94,1.658]
[1771714243933,0.96625589,626.6,625.94,1.658]
[1771714244134,0.96625589,626.59,625.94,1.658]
[1771714244436,0.96625589,626.58,625.94,1.658]
[1771714244634,0.96625589,626.57,625.94,1.658]
[1771714244833,0.96625589,626.56,625.94,1.658]
[1771714245037,0.96625589,626.55,625.94,1.658]
[1771714245337,0.96625589,626.54,625.94,1.658]
[1771714245537,0.96625589,626.53,625.94,1.658]
[1771714245731,0.96625589,626.52,625.94,1.658]
[1771714245936,0.96625589,626.51,625.94,1.658]
[1771714246136,0.96625589,626.5,625.94,1.658]
[1771714246337,0.96625589,626.49,625.94,1.658]
[1771714246633,0.96625589,626.48,625.94,1.658]
[1771714246834,0.96625589,626.47,625.94,1.658]
[1771714247039,0.96625589,626.46,625.94,1.658]
[1771714247239,0.96625589,626.45,625.94,1.658]
[1771714247439,0.96625589,626.44,625.94,1.658]
[1771714247739,0.96625589,626.43,625.94,1.658]
[1771714247937,0.96625589,626.42,625.94,1.658]
[1771714248238,0.96625589,626.41,625.94,1.658]
[1771714248540,0.96625589,626.4,625.94,1.658]
[1771714248740,1.19130752,626.6,625.94,1.658]
[1771714249341,0.9656063,626.59,625.94,1.658]
[1771714249540,0.9656063,626.58,625.94,1.658]
[1771714249741,0.9656063,626.57,625.94,1.658]
[1771714250036,0.9656063,626.56,625.94,1.658]
[1771714250238,0.9656063,626.55,625.94,1.658]
[1771714250443,0.9656063,626.54,625.94,1.658]
[1771714250741,0.9656063,626.53,625.94,1.658]
[1771714251043,0.9656063,626.52,625.94,1.658]
[1771714251341,0.9656063,626.51,625.94,1.658]
[1771714251639,0.9656063,626.5,625.94,1.658]
[1771714251837,0.9656063,626.49,625.94,1.658]
[1771714252036,0.9656063,626.48,625.94,1.658]
[1771714252240,0.9656063,626.47,625.94,1.658]
[1771714252438,0.9656063,626.46,625.94,1.658]
[1771714252638,0.9656063,626.45,625.94,1.658]
[1771714252841,0.9656063,626.44,625.94,1.658]
[1771714253139,0.9656063,626.43,625.94,1.658]
[1771714253338,0.9656063,626.42,625.94,1.658]
[1771714253537,0.9656063,626.41,625.94,1.658]
[1771714253742,1.19130752,626.61,625.94,1.658]
[1771714254142,1.19130752,626.62,625.94,1.658]
[1771714256141,2.15648197,626.62,625.94,1.658]
[1771714256445,2.15648197,626.61,625.94,1.658]
[1771714256642,0.96517445,626.6,625.94,1.658]
[1771714256841,0.96517445,626.59,625.94,1.658]
[1771714257142,0.96517445,626.58,625.94,1.658]
[1771714257341,0.96517445,626.57,625.94,1.658]
[1771714257540,0.96517445,626.56,625.94,1.658]
[1771714257744,0.96517445,626.55,625.94,1.658]
[1771714257942,0.96517445,626.54,625.94,1.658]
[1771714258143,0.96517445,626.53,625.79,0.2778188]
[1771714258443,0.96517445,626.52,625.79,0.2778188]
[1771714258642,0.96517445,626.51,625.79,0.2778188]
[1771714258842,0.96517445,626.5,625.79,0.2778188]
[1771714259046,0.96517445,626.49,625.79,0.2778188]
[1771714259246,0.96517445,626.48,625.79,0.2778188]
[1771714259447,0.96517445,626.47,625.79,0.2778188]
[1771714259648,0.96517445,626.46,625.79,0.2778188]
[1771714259947,0.96517445,626.45,625.79,0.2778188]
[1771714260148,0.96517445,626.44,625.79,0.2778188]
[1771714260446,0.96517445,626.43,625.79,0.2778188]
[1771714260645,0.96517445,626.42,625.79,0.2778188]
[1771714260944,0.96517445,626.41,625.79,0.2778188]
[1771714261155,0.96517445,626.4,625.79,0.2778188]
[1771714261350,0.96517445,626.39,625.79,0.2778188]
[1771714261546,1.19130752,626.59,625.8,1.267]
[1771714261747,0.95907646,626.58,625.8,1.267]
[1771714261944,0.95907646,626.57,625.8,1.267]
[1771714262149,0.95907646,626.56,625.8,1.267]
[1771714262346,0.95907646,626.55,625.8,1.267]
[1771714262546,1.19130752,626.6,625.8,1.267]
[1771714262747,0.95904721,626.59,625.8,1.267]
[1771714263049,0.95904721,626.58,625.8,1.267]
[1771714263346,0.95904721,626.57,625.8,1.267]
[1771714263546,0.95904721,626.56,625.8,1.267]
[1771714263744,0.95904721,626.55,625.8,1.267]
[1771714263950,0.95904721,626.54,625.8,1.267]
[1771714264149,0.95904721,626.53,625.8,1.267]
[1771714264449,0.95904721,626.52,625.8,1.267]
[1771714264649,0.95904721,626.51,625.8,1.267]
[1771714264949,0.95904721,626.5,625.8,1.267]
[1771714265149,0.95904721,626.49,625.8,1.267]
[1771714265349,0.95904721,626.48,625.8,1.267]
[1771714265546,0.95904721,626.47,625.8,1.267]
[1771714265751,0.95904721,626.46,625.8,1.267]
[1771714265948,0.95904721,626.45,625.8,1.267]
[1771714266150,0.95904721,626.44,625.8,1.267]
[1771714266349,0.95904721,626.43,625.8,1.267]
[1771714266549,0.95904721,626.42,625.8,1.267]
[1771714266850,0.95904721,626.41,625.8,1.267]
[1771714267055,0.95904721,626.4,625.8,1.267]
[1771714267252,1.19130752,626.59,625.8,1.267]
[1771714267253,0.95904721,626.39,625.8,1.267]
[1771714267557,1.19130752,626.59,625.8,1.267]
[1771714267754,0.95931175,626.58,625.8,1.267]
[1771714267954,0.95931175,626.57,625.8,1.267]
[1771714268151,0.95931175,626.56,625.8,1.267]
[1771714268354,0.95931175,626.55,625.8,1.267]
[1771714268552,0.95931175,626.54,625.8,1.267]
[1771714268756,0.95931175,626.53,625.8,1.267]
[1771714268956,0.95931175,626.52,625.8,1.267]
[1771714269258,0.95931175,626.51,625.8,1.267]
[1771714269553,0.95931175,626.5,625.8,1.267]
[1771714269754,0.95931175,626.49,625.8,1.267]
[1771714269959,0.95931175,626.48,625.8,1.267]
[1771714270153,0.95931175,626.47,625.8,1.267]
[1771714270354,0.95931175,626.46,625.8,1.267]
[1771714270554,0.95931175,626.45,625.8,1.267]
[1771714270857,0.95931175,626.44,625.8,1.267]
[1771714271153,0.95931175,626.43,625.8,1.267]
[1771714271354,0.95931175,626.42,625.8,1.267]
[1771714271557,0.95931175,626.41,625.8,1.267]
[1771714271753,0.95931175,626.4,625.8,1.267]
[1771714271958,0.95931175,626.39,625.8,1.267]
[1771714272158,1.19130752,626.59,625.8,1.267]
[1771714272454,2.15101745,626.58,625.8,1.267]
[1771714272755,0.95970993,626.57,625.8,1.267]
[1771714272954,0.95970993,626.56,625.8,1.267]
[1771714273154,0.95970993,626.55,625.8,1.267]
[1771714273356,0.95970993,626.54,625.8,1.267]
[1771714273554,0.95970993,626.53,625.8,1.267]
[1771714273758,0.95970993,626.52,625.8,1.267]
[1771714273959,0.95970993,626.51,625.8,1.267]
[1771714274254,0.95970993,626.5,625.8,1.267]
[1771714274455,0.95970993,626.49,625.8,1.267]
[1771714274654,0.95970993,626.48,625.8,1.267]
[1771714274856,0.95970993,626.47,625.8,1.267]
[1771714275056,0.95970993,626.46,625.8,1.267]
[1771714275259,0.95970993,626.45,625.8,1.267]
[1771714275559,0.95970993,626.44,625.8,1.267]
[1771714275758,0.95970993,626.43,625.8,1.267]
[1771714275960,0.95970993,626.42,625.8,1.267]
[1771714276161,0.95970993,626.41,625.8,1.267]
[1771714276357,0.95970993,626.4,625.8,1.267]
[1771714276657,0.95970993,626.39,625.8,1.267]
[1771714276857,0.95970993,626.38,625.8,1.267]
[1771714277057,1.19130752,626.58,625.8,1.267]
[1771714279363,2.15111241,626.58,625.8,1.267]
[1771714279659,0.95980489,626.57,625.8,1.267]
[1771714279862,0.95980489,626.56,625.8,1.267]
[1771714280162,0.95980489,626.55,625.8,1.267]
[1771714280462,0.95980489,626.54,625.8,1.267]
[1771714280662,0.95980489,626.53,625.8,1.267]
[1771714280858,0.95980489,626.52,625.8,1.267]
[1771714281059,1.19130752,626.52,625.8,1.267]
[1771714281362,3.97653623,627.25,625.8,1.267]
[1771714281363,1.19130752,626.5,625.8,1.267]
[1771714281665,1.19130752,626.5,625.79,0.2778188]
[1771714282060,1.19130752,626.47,625.79,0.2778188]
[1771714282264,2.15111241,626.48,625.79,0.2778188]
[1771714282561,0.95980489,626.47,625.79,0.2778188]
[1771714282760,1.19130752,626.48,625.79,0.2778188]
[1771714282761,0.95980489,626.46,625.79,0.2778188]
[1771714282963,0.95980489,626.45,625.79,0.2778188]
[1771714283258,0.95980489,626.44,625.79,0.2778188]
[1771714283463,0.95980489,626.43,625.79,0.2778188]
[1771714283666,0.95980489,626.42,625.79,0.2778188]
[1771714283863,0.95980489,626.41,625.79,0.2778188]
[1771714284166,0.95980489,626.4,625.79,0.2778188]
[1771714284365,0.95980489,626.39,625.79,0.2778188]
[1771714284566,0.95980489,626.38,625.79,0.2778188]
[1771714284862,0.95980489,626.37,625.79,0.2778188]
[1771714285066,0.95980489,626.36,625.8,1.41]
[1771714285262,0.95980489,626.35,625.8,1.41]
[1771714285467,0.95980489,626.34,625.8,1.41]
[1771714285766,0.95980489,626.33,625.8,1.41]
[1771714285966,0.95980489,626.32,625.8,1.41]
[1771714286164,0.95980489,626.31,625.8,1.41]
[1771714286367,0.95980489,626.3,625.8,1.41]
[1771714286567,0.95980489,626.29,625.8,1.41]
[1771714286862,0.95980489,626.28,625.8,1.41]
[1771714287063,0.95980489,626.27,625.8,1.41]
[1771714287263,1.19130752,626.47,625.8,1.41]
[1771714287464,1.59061449,626.59,625.8,1.41]
[1771714287465,0.95779794,626.46,625.8,1.41]
[1771714287763,0.95779794,626.45,625.8,1.41]
[1771714287966,0.95779794,626.44,625.8,1.41]
[1771714288164,0.95779794,626.43,625.8,1.41]
[1771714288364,0.95779794,626.42,625.8,1.41]
[1771714288567,0.95779794,626.41,625.8,1.41]
[1771714288767,0.95779794,626.4,625.8,1.41]
[1771714288974,0.95779794,626.39,625.8,1.41]
[1771714289166,0.95779794,626.38,625.8,1.41]
[1771714289367,0.95779794,626.37,625.8,1.41]
[1771714289567,0.95779794,626.36,625.8,1.41]
[1771714289868,0.95779794,626.35,625.8,1.41]
[1771714290063,0.95779794,626.34,625.8,1.41]
[1771714290263,0.95779794,626.33,625.8,1.41]
[1771714290565,0.95779794,626.32,625.8,1.41]
[1771714290764,0.95779794,626.31,625.8,1.41]
[1771714290967,0.95779794,626.3,625.8,1.41]
[1771714291267,0.95779794,626.29,625.8,1.41]
[1771714291465,0.95779794,626.28,625.8,1.41]
[1771714291767,1.19130752,626.48,625.8,1.41]
[1771714294269,2.1490255,626.48,625.8,1.41]
[1771714294566,0.95771798,626.47,625.8,1.41]
[1771714294869,0.95771798,626.46,625.8,1.41]
[1771714295169,0.95771798,626.45,625.8,1.41]
[1771714295365,0.95771798,626.44,625.8,1.41]
[1771714295668,0.95771798,626.43,625.8,1.41]
[1771714295866,0.95771798,626.42,625.8,1.41]
[1771714296065,0.95771798,626.41,625.8,1.41]
[1771714296267,0.95771798,626.4,625.8,1.41]
[1771714296470,0.95771798,626.39,625.8,1.41]
[1771714296668,0.95771798,626.38,625.8,1.41]
[1771714296867,0.95771798,626.37,625.8,1.41]
[1771714297066,0.95771798,626.36,625.8,1.41]
[1771714297271,0.95771798,626.35,625.8,1.41]
[1771714297470,0.95771798,626.34,625.8,1.41]
[1771714297670,0.95771798,626.33,625.8,1.41]
[1771714297967,0.95771798,626.32,625.8,1.41]
[1771714298172,0.95771798,626.31,625.8,1.41]
[1771714298374,0.95771798,626.3,625.8,1.41]
[1771714298672,0.95771798,626.29,625.8,1.41]
[1771714298971,0.95771798,626.28,625.8,1.41]
[1771714299171,0.95771798,626.27,625.8,1.41]
[1771714299370,0.95771798,626.26,625.8,1.41]
[1771714299570,1.19130752,626.46,625.8,1.41]
[1771714299772,0.95732544,626.45,625.8,1.41]
[1771714299972,0.95732544,626.44,625.8,1.41]
[1771714300272,0.95732544,626.43,625.8,1.41]
[1771714300468,1.19130752,626.46,625.8,1.41]
[1771714300469,0.95732544,626.42,625.8,1.41]
[1771714300773,0.95732544,626.41,625.8,1.41]
[1771714301068,0.95732544,626.4,625.8,1.41]
[1771714301269,0.95732544,626.39,625.8,1.41]
[1771714301468,0.95732544,626.38,625.8,1.41]
[1771714301669,0.95732544,626.37,625.8,1.41]
[1771714301971,0.95732544,626.36,625.8,1.41]
[1771714302171,0.95732544,626.35,625.8,1.41]
[1771714302372,0.95732544,626.34,625.8,1.41]
[1771714302573,0.95732544,626.33,625.8,1.41]
[1771714302870,0.95732544,626.32,625.8,1.41]
[1771714303071,0.95732544,626.31,625.8,1.41]
[1771714303268,0.95732544,626.3,625.8,1.41]
[1771714303472,0.95732544,626.29,625.8,1.41]
[1771714303672,0.95732544,626.28,625.8,1.41]
[1771714303870,0.95732544,626.27,625.8,1.41]
[1771714304077,0.95732544,626.26,625.8,1.41]
[1771714304277,1.19130752,626.46,625.8,1.41]
[1771714304476,0.95724345,626.45,625.8,1.41]
[1771714304677,0.95724345,626.44,625.8,1.41]
[1771714304877,0.95724345,626.43,625.8,1.41]
[1771714305077,0.95724345,626.42,625.8,1.41]
[1771714305277,0.95724345,626.41,625.8,1.41]
[1771714305580,0.95724345,626.4,625.8,1.41]
[1771714305778,0.95724345,626.39,625.8,1.41]
[1771714305978,0.95724345,626.38,625.8,1.41]
[1771714306378,0.95724345,626.37,625.8,1.41]
[1771714306582,0.95724345,626.36,625.8,1.41]
[1771714306779,0.95724345,626.35,625.8,1.41]
[1771714306983,0.95724345,626.34,625.8,1.41]
[1771714307180,0.95724345,626.33,625.8,1.41]
[1771714307384,0.95724345,626.32,625.8,1.41]
[1771714307585,0.95724345,626.31,625.8,1.41]
[1771714307780,0.95724345,626.3,625.8,1.41]
[1771714307982,0.95724345,626.29,625.8,1.41]
[1771714308186,0.95724345,626.28,625.8,1.41]
[1771714308384,0.95724345,626.27,625.8,1.41]
[1771714308581,0.95724345,626.26,625.8,1.41]
[1771714308884,0.95724345,626.25,625.8,1.41]
[1771714309081,0.95724345,626.24,625.8,1.41]
[1771714309281,1.19130752,626.44,625.8,1.41]
[1771714309480,0.95717224,626.43,625.8,1.41]
[1771714309783,0.95717224,626.42,625.8,1.41]
[1771714309984,0.95717224,626.41,625.8,1.41]
[1771714310185,0.95717224,626.4,625.8,1.41]
[1771714310385,0.95717224,626.39,625.8,1.41]
[1771714310585,0.95717224,626.38,625.8,1.41]
[1771714310783,0.95717224,626.37,625.8,1.41]
[1771714310981,0.95717224,626.36,625.8,1.41]
[1771714311185,0.95717224,626.35,625.8,1.41]
[1771714311481,0.95717224,626.34,625.8,1.41]
[1771714311686,0.95717224,626.33,625.8,1.41]
[1771714311881,0.95717224,626.32,625.8,1.41]
[1771714312080,0.95717224,626.31,625.8,1.41]
[1771714312284,0.95717224,626.3,625.8,1.41]
[1771714312582,0.95717224,626.29,625.8,1.41]
[1771714312780,0.95717224,626.28,625.8,1.41]
[1771714312984,0.95717224,626.27,625.8,1.41]
[1771714313185,0.95717224,626.26,625.8,1.41]
[1771714313385,0.95717224,626.25,625.8,1.41]
[1771714313585,0.95717224,626.24,625.8,1.41]
[1771714313880,0.95717224,626.23,625.8,1.41]
[1771714314086,0.95717224,626.22,625.8,1.41]
[1771714314285,1.19130752,626.42,625.8,1.41]
[1771714314482,0.95723454,626.41,625.8,1.41]
[1771714314680,0.95723454,626.4,625.8,1.41]
[1771714314886,0.95723454,626.39,625.8,1.41]
[1771714315086,0.95723454,626.38,625.8,1.41]
[1771714315287,0.95723454,626.37,625.8,1.41]
[1771714315484,0.95723454,626.36,625.8,1.41]
[1771714315786,0.95723454,626.35,625.8,1.41]
[1771714315981,0.95723454,626.34,625.8,1.41]
[1771714316183,0.95723454,626.33,625.8,1.41]
[1771714316382,0.95723454,626.32,625.8,1.41]
[1771714316583,0.95723454,626.31,625.8,1.41]
[1771714316884,0.95723454,626.3,625.8,1.41]
[1771714317086,0.95723454,626.29,625.8,1.41]
[1771714317282,0.95723454,626.28,625.8,1.41]
[1771714317481,0.95723454,626.27,625.8,1.41]
[1771714317685,0.95723454,626.26,625.8,1.41]
[1771714317987,0.95723454,626.25,625.8,1.41]
[1771714318188,0.95723454,626.24,625.8,1.41]
[1771714318485,0.95723454,626.23,625.8,1.41]
[1771714318688,0.95723454,626.22,625.8,1.41]
[1771714318888,1.19130752,626.42,625.8,1.41]
[1771714319188,0.95172087,626.41,625.8,1.41]
[1771714319389,0.95172087,626.4,625.8,1.41]
[1771714319588,0.95172087,626.39,625.8,1.41]
[1771714319787,0.95172087,626.38,625.8,1.41]
[1771714319986,0.95172087,626.37,625.8,1.41]
[1771714320190,0.95172087,626.36,625.8,1.41]
[1771714320486,0.95172087,626.35,625.8,1.41]
[1771714320687,1.59061449,626.53,625.8,1.41]
[1771714320891,1.19118495,626.42,625.8,1.41]
[1771714321090,0.95192127,626.41,625.8,1.41]
[1771714321293,0.95192127,626.4,625.8,1.41]
[1771714321493,0.95192127,626.39,625.8,1.41]
[1771714321693,0.95192127,626.38,625.8,1.41]
[1771714321994,0.95192127,626.37,625.8,1.41]
[1771714322191,1.19118495,626.41,625.8,1.41]
[1771714322192,0.95192127,626.36,625.8,1.41]
[1771714322392,0.95192127,626.35,625.8,1.41]
[1771714322693,0.95192127,626.34,625.8,1.41]
[1771714322893,0.95192127,626.33,625.8,1.41]
[1771714323089,0.95192127,626.32,625.8,1.41]
[1771714323294,0.95192127,626.31,625.8,1.41]
[1771714323491,0.95192127,626.3,625.8,1.41]
[1771714323691,0.95192127,626.29,625.8,1.41]
[1771714323894,0.95192127,626.28,625.8,1.41]
[1771714324195,0.95192127,626.27,625.8,1.41]
[1771714324493,0.95192127,626.26,625.8,1.41]
[1771714324692,0.95192127,626.25,625.8,1.41]
[1771714324997,0.95192127,626.24,625.8,1.41]
[1771714325195,0.95192127,626.23,625.8,1.41]
[1771714325496,0.95192127,626.22,625.8,1.41]
[1771714325696,0.95192127,626.21,625.8,1.41]
[1771714325892,1.19118495,626.39,625.8,1.41]
[1771714325893,0.95192127,626.2,625.8,1.41]
[1771714326091,0.95192127,626.19,625.8,1.41]
[1771714326293,1.19118495,626.39,625.8,1.41]
[1771714327097,1.19118495,626.39,625.79,0.2778188]
[1771714328594,2.14415742,626.39,625.79,0.2778188]
[1771714328797,0.95297247,626.38,625.79,0.2778188]
[1771714329094,0.95297247,626.37,625.79,0.2778188]
[1771714329299,0.95297247,626.36,625.79,0.2778188]
[1771714329496,0.95297247,626.35,625.79,0.2778188]
[1771714329700,0.95297247,626.34,625.79,0.2778188]
[1771714329897,0.95297247,626.33,625.79,0.2778188]
[1771714330100,0.95297247,626.32,625.79,0.2778188]
[1771714330298,0.95297247,626.31,625.79,0.2778188]
[1771714330502,0.95297247,626.3,625.79,0.2778188]
[1771714330798,0.95297247,626.29,625.8,1.435]
[1771714330996,0.95297247,626.28,625.8,1.435]
[1771714331198,0.95297247,626.27,625.8,1.435]
[1771714331400,0.95297247,626.26,625.8,1.435]
[1771714331601,0.95297247,626.25,625.8,1.435]
[1771714331798,0.95297247,626.24,625.8,1.435]
[1771714331997,0.95297247,626.23,625.8,1.435]
[1771714332197,0.95297247,626.22,625.8,1.435]
[1771714332501,0.95297247,626.21,625.8,1.435]
[1771714332700,0.95297247,626.2,625.8,1.435]
[1771714332899,0.95297247,626.19,625.8,1.435]
[1771714333201,0.95297247,626.18,625.8,1.435]
[1771714333402,1.19118495,626.38,625.8,1.435]
[1771714338204,2.14431625,626.38,625.8,1.435]
[1771714338405,0.9531313,626.37,625.8,1.435]
[1771714338701,0.9531313,626.36,625.8,1.435]
[1771714339001,0.9531313,626.35,625.8,1.435]
[1771714339204,0.9531313,626.34,625.8,1.435]
[1771714339405,1.19118495,626.38,625.8,1.435]
[1771714339406,0.9531313,626.33,625.8,1.435]
[1771714339600,0.9531313,626.32,625.8,1.435]
[1771714339801,0.9531313,626.31,625.8,1.435]
[1771714340003,1.19118495,626.38,625.8,1.435]
[1771714340004,0.9531313,626.3,625.8,1.435]
[1771714340200,1.19118495,626.38,625.8,1.435]
[1771714340201,0.9531313,626.29,625.8,1.435]
[1771714340404,0.27791643,626.66,625.8,1.435]
[1771714340405,0.9531313,626.28,625.8,1.435]
[1771714340605,1.19118495,626.47,625.8,1.435]
[1771714340606,1.19118495,626.49,625.8,1.435]
[1771714341402,0.95363669,626.48,625.8,1.435]
[1771714341605,0.95363669,626.47,625.8,1.435]
[1771714341804,0.95363669,626.46,625.8,1.435]
[1771714342103,0.95363669,626.45,625.8,1.435]